[Event "Early-Titled-Tuesday-Blitz-February-13-2024"]
[Site "Chess.com"]
[Date "2024.02.13"]
[Round "9"]
[White "wild3000"]
[Black "rcmz"]
[Result "1/2-1/2"]
[WhiteElo "2363"]
[BlackElo "2178"]
[TimeControl "180+1"]
[EndTime "9:49:27 PST"]
[Termination "Game drawn by repetition"]

1. d4 {[%clk 0:03:00]} 1... d6 {[%clk 0:02:59]} 2. g3 {[%clk 0:03:00.9]} 2...
Nd7 {[%clk 0:02:58.5]} 3. Bg2 {[%clk 0:03:01.5]} 3... h6 {[%clk 0:02:57.8]} 4.
e4 {[%clk 0:03:01.3]} 4... c6 {[%clk 0:02:57.8]} 5. f4 {[%clk 0:03:00.9]} 5...
g6 {[%clk 0:02:53.8]} 6. h4 {[%clk 0:02:59]} 6... Bg7 {[%clk 0:02:53.5]} 7. h5
{[%clk 0:02:59.3]} 7... e6 {[%clk 0:02:53.4]} 8. hxg6 {[%clk 0:02:59.2]} 8...
fxg6 {[%clk 0:02:53.3]} 9. Qg4 {[%clk 0:02:58.8]} 9... Nf8 {[%clk 0:02:52.9]}
10. c4 {[%clk 0:02:51.4]} 10... e5 {[%clk 0:02:50.5]} 11. Qe2 {[%clk 0:02:46.1]}
11... exd4 {[%clk 0:02:49.1]} 12. Nf3 {[%clk 0:02:45.1]} 12... Bg4 {[%clk
0:02:41.8]} 13. O-O {[%clk 0:02:43.5]} 13... Ne7 {[%clk 0:02:28.8]} 14. Qd3
{[%clk 0:02:43.6]} 14... c5 {[%clk 0:02:18.8]} 15. Na3 {[%clk 0:02:41.7]} 15...
a6 {[%clk 0:02:16.4]} 16. Nc2 {[%clk 0:02:38.9]} 16... Qd7 {[%clk 0:02:13.1]}
17. b4 {[%clk 0:02:38.4]} 17... Bh3 {[%clk 0:02:10]} 18. bxc5 {[%clk 0:02:36.7]}
18... dxc5 {[%clk 0:02:08.9]} 19. e5 {[%clk 0:02:37]} 19... Bxg2 {[%clk
0:02:06.2]} 20. Kxg2 {[%clk 0:02:37.1]} 20... Qc6 {[%clk 0:02:05.9]} 21. Re1
{[%clk 0:02:31.2]} 21... Ne6 {[%clk 0:02:04.7]} 22. Kf2 {[%clk 0:02:30.3]} 22...
O-O {[%clk 0:02:01.3]} 23. Bd2 {[%clk 0:02:28.8]} 23... g5 {[%clk 0:01:58.7]}
24. Qe4 {[%clk 0:02:21.2]} 24... g4 {[%clk 0:01:51.5]} 25. Qxc6 {[%clk
0:02:18.8]} 25... Nxc6 {[%clk 0:01:47.3]} 26. Nh4 {[%clk 0:02:19]} 26... d3
{[%clk 0:01:29.4]} 27. Ne3 {[%clk 0:02:18]} 27... h5 {[%clk 0:01:27.4]} 28. Rab1
{[%clk 0:02:16.6]} 28... Rab8 {[%clk 0:01:19.6]} 29. Rb3 {[%clk 0:02:15.1]}
29... Rfd8 {[%clk 0:01:17.2]} 30. Nd5 {[%clk 0:02:15.1]} 30... Ncd4 {[%clk
0:01:15]} 31. Rxd3 {[%clk 0:02:12]} 31... b5 {[%clk 0:01:08.7]} 32. f5 {[%clk
0:02:11.3]} 32... Nf8 {[%clk 0:01:02.9]} 33. Ne7+ {[%clk 0:02:03.8]} 33... Kf7
{[%clk 0:01:01.5]} 34. f6 {[%clk 0:02:04.1]} 34... Bh8 {[%clk 0:00:58.8]} 35.
cxb5 {[%clk 0:01:59.8]} 35... axb5 {[%clk 0:00:58]} 36. Nhf5 {[%clk 0:01:43.3]}
36... Nxf5 {[%clk 0:00:56.6]} 37. Rxd8 {[%clk 0:01:31.3]} 37... Rxd8 {[%clk
0:00:55.8]} 38. Bg5 {[%clk 0:01:27.3]} 38... Nd4 {[%clk 0:00:53.2]} 39. Rh1
{[%clk 0:01:18]} 39... Nfe6 {[%clk 0:00:51.6]} 40. Rxh5 {[%clk 0:01:15.6]} 40...
Nxg5 {[%clk 0:00:51.2]} 41. Rxg5 {[%clk 0:01:16.5]} 41... Ke6 {[%clk 0:00:51.1]}
42. Ng6 {[%clk 0:01:09.6]} 42... Nc6 {[%clk 0:00:38.8]} 43. Ke3 {[%clk
0:01:03.8]} 43... Bxf6 {[%clk 0:00:32.7]} 44. exf6 {[%clk 0:01:03.4]} 44... Kxf6
{[%clk 0:00:32.8]} 45. Rxg4 {[%clk 0:01:01.6]} 45... Re8+ {[%clk 0:00:31]} 46.
Kf2 {[%clk 0:01:00.5]} 46... Nd4 {[%clk 0:00:28.6]} 47. Nf4 {[%clk 0:00:58.3]}
47... Nc2 {[%clk 0:00:26]} 48. Nd5+ {[%clk 0:00:49.6]} 48... Ke5 {[%clk
0:00:24.6]} 49. Nc7 {[%clk 0:00:47.7]} 49... Rf8+ {[%clk 0:00:23.7]} 50. Ke2
{[%clk 0:00:47.3]} 50... Nd4+ {[%clk 0:00:23.3]} 51. Ke1 {[%clk 0:00:43.8]}
51... Nf3+ {[%clk 0:00:22.6]} 52. Kd1 {[%clk 0:00:42.2]} 52... b4 {[%clk
0:00:22.5]} 53. Na6 {[%clk 0:00:36]} 53... Rd8+ {[%clk 0:00:20.7]} 54. Ke2
{[%clk 0:00:34.9]} 54... Nd4+ {[%clk 0:00:20.7]} 55. Kd3 {[%clk 0:00:32.3]}
55... Ne6+ {[%clk 0:00:20.7]} 56. Kc4 {[%clk 0:00:29.8]} 56... Ra8 {[%clk
0:00:19.2]} 57. Nxc5 {[%clk 0:00:26.5]} 57... Nxc5 {[%clk 0:00:19.1]} 58. Rg5+
{[%clk 0:00:23.6]} 58... Kf6 {[%clk 0:00:18.9]} 59. Rxc5 {[%clk 0:00:22.7]}
59... Rxa2 {[%clk 0:00:18.8]} 60. Kxb4 {[%clk 0:00:22.9]} 60... Rg2 {[%clk
0:00:18.6]} 61. Rc3 {[%clk 0:00:21.2]} 61... Kg5 {[%clk 0:00:18.5]} 62. Kc4
{[%clk 0:00:20.9]} 62... Kg4 {[%clk 0:00:18.5]} 63. Kd4 {[%clk 0:00:21.1]} 63...
Rxg3 {[%clk 0:00:18.7]} 64. Rc6 {[%clk 0:00:21.8]} 64... Rf3 {[%clk 0:00:18.7]}
65. Ke4 {[%clk 0:00:21.9]} 65... Rf4+ {[%clk 0:00:18.4]} 66. Ke3 {[%clk
0:00:22.2]} 66... Rf3+ {[%clk 0:00:18.6]} 67. Ke2 {[%clk 0:00:22.4]} 67... Ra3
{[%clk 0:00:18.1]} 68. Rc4+ {[%clk 0:00:22.4]} 68... Kf5 {[%clk 0:00:18.1]} 69.
Rc5+ {[%clk 0:00:22.3]} 69... Ke6 {[%clk 0:00:18.2]} 70. Rc2 {[%clk 0:00:22.8]}
70... Ke5 {[%clk 0:00:18]} 71. Kf2 {[%clk 0:00:22.8]} 71... Kf5 {[%clk
0:00:17.9]} 72. Rb2 {[%clk 0:00:22.2]} 72... Ke5 {[%clk 0:00:17.9]} 73. Rc2
{[%clk 0:00:22.6]} 73... Kf5 {[%clk 0:00:17.8]} 74. Rb2 {[%clk 0:00:23.5]} 74...
Ke5 {[%clk 0:00:18]} 75. Rc2 {[%clk 0:00:23.7]} 1/2-1/2

[Event "Early-Titled-Tuesday-Blitz-February-13-2024"]
[Site "Chess.com"]
[Date "2024.02.13"]
[Round "9"]
[White "Karttunen"]
[Black "ATM622"]
[Result "1-0"]
[WhiteElo "2633"]
[BlackElo "2476"]
[TimeControl "180+1"]
[EndTime "9:49:28 PST"]
[Termination "Karttunen won by resignation"]

1. c4 {[%clk 0:03:00.9]} 1... e5 {[%clk 0:02:58.1]} 2. Nc3 {[%clk 0:02:59.4]}
2... Nf6 {[%clk 0:02:57.1]} 3. Nf3 {[%clk 0:02:58.9]} 3... Nc6 {[%clk
0:02:54.8]} 4. e4 {[%clk 0:02:57.6]} 4... Bc5 {[%clk 0:02:50.8]} 5. Nxe5 {[%clk
0:02:53.6]} 5... Bxf2+ {[%clk 0:02:48.6]} 6. Kxf2 {[%clk 0:02:53.1]} 6... Nxe5
{[%clk 0:02:48.6]} 7. d4 {[%clk 0:02:50.9]} 7... Neg4+ {[%clk 0:02:43.3]} 8. Kg1
{[%clk 0:02:46.3]} 8... d6 {[%clk 0:02:41.4]} 9. h3 {[%clk 0:02:42.7]} 9... Nh6
{[%clk 0:02:40]} 10. Bd3 {[%clk 0:02:24.2]} 10... Qe7 {[%clk 0:02:16.7]} 11. Bg5
{[%clk 0:02:20.4]} 11... Nhg8 {[%clk 0:02:12.6]} 12. Nd5 {[%clk 0:02:17.2]}
12... Qd7 {[%clk 0:02:05.1]} 13. Bxf6 {[%clk 0:02:11.1]} 13... Nxf6 {[%clk
0:02:02.4]} 14. Nxf6+ {[%clk 0:02:10.7]} 14... gxf6 {[%clk 0:02:03.3]} 15. Qf3
{[%clk 0:02:07.4]} 15... Qe6 {[%clk 0:01:57.9]} 16. Qg3 {[%clk 0:01:51.7]} 16...
Bd7 {[%clk 0:01:55.8]} 17. Rf1 {[%clk 0:01:45.4]} 17... O-O-O {[%clk 0:01:54.9]}
18. Qg7 {[%clk 0:01:39.6]} 18... Rhg8 {[%clk 0:01:43.7]} 19. Qxf6 {[%clk
0:01:37.1]} 19... Qxf6 {[%clk 0:01:42.3]} 20. Rxf6 {[%clk 0:01:36.7]} 20... Rg3
{[%clk 0:01:42.8]} 21. Rf3 {[%clk 0:01:35]} 21... Rdg8 {[%clk 0:01:42]} 22. Rxg3
{[%clk 0:01:25.6]} 22... Rxg3 {[%clk 0:01:41.5]} 23. Bc2 {[%clk 0:01:17.3]}
23... c5 {[%clk 0:01:23.3]} 24. Kf2 {[%clk 0:01:15.4]} 24... Rg8 {[%clk
0:01:21.2]} 25. d5 {[%clk 0:01:03.7]} 25... h5 {[%clk 0:01:09.6]} 26. Re1 {[%clk
0:00:57.2]} 26... f6 {[%clk 0:01:07]} 27. Re3 {[%clk 0:00:56.9]} 27... Kd8
{[%clk 0:00:59.5]} 28. Rf3 {[%clk 0:00:55.6]} 28... Ke7 {[%clk 0:00:59.2]} 29.
Rf4 {[%clk 0:00:56]} 29... Rg5 {[%clk 0:00:56.5]} 30. Bd1 {[%clk 0:00:53.1]}
30... b5 {[%clk 0:00:50.3]} 31. cxb5 {[%clk 0:00:41.9]} 31... Bxb5 {[%clk
0:00:51.2]} 32. Rf5 {[%clk 0:00:29.6]} 32... Bd3 {[%clk 0:00:34.4]} 33. Rxg5
{[%clk 0:00:28.9]} 33... fxg5 {[%clk 0:00:34.5]} 34. Ke3 {[%clk 0:00:28.3]}
34... Bb1 {[%clk 0:00:32.9]} 35. a3 {[%clk 0:00:26.2]} 35... h4 {[%clk
0:00:31.6]} 36. Bg4 {[%clk 0:00:15.4]} 36... Kf6 {[%clk 0:00:31.2]} 37. Bf5
{[%clk 0:00:15.9]} 37... Bc2 {[%clk 0:00:23.4]} 38. Kd2 {[%clk 0:00:11.4]} 38...
Bb1 {[%clk 0:00:21.9]} 39. b4 {[%clk 0:00:10.6]} 39... c4 {[%clk 0:00:13.6]} 40.
Kc3 {[%clk 0:00:05.1]} 40... Bd3 {[%clk 0:00:12.3]} 41. b5 {[%clk 0:00:05.6]}
41... Ke7 {[%clk 0:00:12]} 42. a4 {[%clk 0:00:05.5]} 42... Bf1 {[%clk
0:00:11.9]} 43. a5 {[%clk 0:00:04.5]} 43... Kd8 {[%clk 0:00:11.5]} 44. Bg6
{[%clk 0:00:02.6]} 44... Kc7 {[%clk 0:00:11.1]} 45. Bf5 {[%clk 0:00:03]} 45...
Bxg2 {[%clk 0:00:10.6]} 46. Kxc4 {[%clk 0:00:03.1]} 46... Bf1+ {[%clk
0:00:10.4]} 47. Kb4 {[%clk 0:00:03.5]} 47... Be2 {[%clk 0:00:09.2]} 48. b6+
{[%clk 0:00:02.1]} 48... axb6 {[%clk 0:00:09.4]} 49. axb6+ {[%clk 0:00:02.9]}
49... Kxb6 {[%clk 0:00:10.3]} 50. e5 {[%clk 0:00:03.3]} 50... dxe5 {[%clk
0:00:10.2]} 51. d6 {[%clk 0:00:03.9]} 51... Kc6 {[%clk 0:00:10.6]} 52. d7 {[%clk
0:00:04]} 52... Kc7 {[%clk 0:00:10.8]} 53. Kc5 {[%clk 0:00:04.7]} 53... g4
{[%clk 0:00:10.7]} 54. hxg4 {[%clk 0:00:04.8]} 54... h3 {[%clk 0:00:08.1]} 55.
g5 {[%clk 0:00:04.9]} 55... Bf3 {[%clk 0:00:07]} 56. Bxh3 {[%clk 0:00:05]} 56...
Be4 {[%clk 0:00:05.9]} 57. Be6 {[%clk 0:00:04.7]} 57... Bd3 {[%clk 0:00:03]} 58.
Kd5 {[%clk 0:00:04.6]} 58... e4 {[%clk 0:00:03.3]} 59. Kd4 {[%clk 0:00:05.1]}
59... Bb1 {[%clk 0:00:02.7]} 60. Ke3 {[%clk 0:00:05.2]} 60... Bc2 {[%clk
0:00:02.7]} 61. g6 {[%clk 0:00:05.8]} 61... Bb3 {[%clk 0:00:02.6]} 62. Bxb3
{[%clk 0:00:05.4]} 62... Kxd7 {[%clk 0:00:02.8]} 63. g7 {[%clk 0:00:06]} 63...
Ke7 {[%clk 0:00:03.1]} 64. g8=Q {[%clk 0:00:06.1]} 1-0

[Event "Early-Titled-Tuesday-Blitz-February-13-2024"]
[Site "Chess.com"]
[Date "2024.02.13"]
[Round "9"]
[White "martinmena"]
[Black "kekic76"]
[Result "1-0"]
[WhiteElo "2123"]
[BlackElo "2302"]
[TimeControl "180+1"]
[EndTime "9:49:28 PST"]
[Termination "martinmena won on time"]

1. c4 {[%clk 0:02:55.5]} 1... e5 {[%clk 0:02:59.5]} 2. g3 {[%clk 0:02:50.6]}
2... Nc6 {[%clk 0:02:58.7]} 3. Bg2 {[%clk 0:02:49.6]} 3... Bc5 {[%clk
0:02:57.4]} 4. Nc3 {[%clk 0:02:49.5]} 4... d6 {[%clk 0:02:56.9]} 5. e3 {[%clk
0:02:48.1]} 5... a5 {[%clk 0:02:55.2]} 6. Nge2 {[%clk 0:02:48.2]} 6... Nf6
{[%clk 0:02:51]} 7. O-O {[%clk 0:02:47.5]} 7... O-O {[%clk 0:02:50.6]} 8. b3
{[%clk 0:02:38.3]} 8... Re8 {[%clk 0:02:48.9]} 9. d4 {[%clk 0:02:34.2]} 9...
exd4 {[%clk 0:02:44.4]} 10. Nxd4 {[%clk 0:02:30.7]} 10... Ne5 {[%clk 0:02:38.7]}
11. h3 {[%clk 0:02:19]} 11... Rb8 {[%clk 0:02:29.9]} 12. Bb2 {[%clk 0:02:00.8]}
12... c6 {[%clk 0:02:27.4]} 13. Qc2 {[%clk 0:01:38.9]} 13... Qc7 {[%clk
0:02:23.2]} 14. Rad1 {[%clk 0:01:22]} 14... Bd7 {[%clk 0:02:17.7]} 15. Na4
{[%clk 0:00:57.1]} 15... Ba7 {[%clk 0:02:13.1]} 16. c5 {[%clk 0:00:46.3]} 16...
d5 {[%clk 0:02:03.8]} 17. Nf5 {[%clk 0:00:33.5]} 17... Bxf5 {[%clk 0:01:51.8]}
18. Qxf5 {[%clk 0:00:34.4]} 18... Ned7 {[%clk 0:01:38.3]} 19. Bd4 {[%clk
0:00:11.8]} 19... Re6 {[%clk 0:01:29.6]} 20. g4 {[%clk 0:00:10.7]} 20... Rbe8
{[%clk 0:01:27.4]} 21. f4 {[%clk 0:00:10.3]} 21... Ne4 {[%clk 0:01:23.9]} 22.
Bxe4 {[%clk 0:00:08.9]} 22... Rxe4 {[%clk 0:01:21.3]} 23. Qg5 {[%clk 0:00:08.6]}
23... f6 {[%clk 0:01:10.8]} 24. Qh4 {[%clk 0:00:07.1]} 24... Nf8 {[%clk
0:01:07.2]} 25. f5 {[%clk 0:00:05.5]} 25... Nd7 {[%clk 0:00:51.9]} 26. Kg2
{[%clk 0:00:03.8]} 26... Rxe3 {[%clk 0:00:46.1]} 27. Bxe3 {[%clk 0:00:03.5]}
27... Rxe3 {[%clk 0:00:47]} 28. Rde1 {[%clk 0:00:03.6]} 28... Rxe1 {[%clk
0:00:17.9]} 29. Rxe1 {[%clk 0:00:04.5]} 29... Ne5 {[%clk 0:00:16.3]} 30. Qg3
{[%clk 0:00:03.8]} 30... Bb8 {[%clk 0:00:14]} 31. g5 {[%clk 0:00:03.9]} 31...
Qe7 {[%clk 0:00:12.8]} 32. gxf6 {[%clk 0:00:03.7]} 32... Qxf6 {[%clk 0:00:12.8]}
33. Nb6 {[%clk 0:00:04.4]} 33... Nd7 {[%clk 0:00:10.1]} 34. Qf3 {[%clk
0:00:03.5]} 34... Nxb6 {[%clk 0:00:09.1]} 35. cxb6 {[%clk 0:00:04.4]} 35... h6
{[%clk 0:00:09.4]} 36. Re2 {[%clk 0:00:02.8]} 36... Bd6 {[%clk 0:00:08.5]} 37.
Qg4 {[%clk 0:00:03.4]} 37... Be7 {[%clk 0:00:07.7]} 38. Qg6 {[%clk 0:00:04]}
38... Qh4 {[%clk 0:00:06.7]} 39. Re6 {[%clk 0:00:02.8]} 39... Qg5+ {[%clk
0:00:06]} 40. Qxg5 {[%clk 0:00:02.8]} 40... Bxg5 {[%clk 0:00:06.9]} 41. Re8+
{[%clk 0:00:03.2]} 41... Kf7 {[%clk 0:00:06.8]} 42. Rb8 {[%clk 0:00:03.9]} 42...
Ke7 {[%clk 0:00:07]} 43. Rxb7+ {[%clk 0:00:04.5]} 43... Kd6 {[%clk 0:00:06.7]}
44. Rxg7 {[%clk 0:00:05.1]} 44... c5 {[%clk 0:00:05.2]} 45. h4 {[%clk
0:00:05.4]} 45... Bxh4 {[%clk 0:00:05.2]} 46. Rg6+ {[%clk 0:00:06.1]} 46... Kd7
{[%clk 0:00:04.9]} 47. b7 {[%clk 0:00:06.3]} 47... Kc7 {[%clk 0:00:04.8]} 48.
Rb6 {[%clk 0:00:06.2]} 48... Kb8 {[%clk 0:00:04.5]} 49. f6 {[%clk 0:00:05.9]}
49... h5 {[%clk 0:00:02.9]} 50. f7 {[%clk 0:00:05.9]} 50... Be7 {[%clk
0:00:03.4]} 51. Re6 {[%clk 0:00:06.5]} 51... Kxb7 {[%clk 0:00:01.7]} 52. Rxe7+
{[%clk 0:00:06.7]} 52... Kb6 {[%clk 0:00:02.2]} 53. f8=Q {[%clk 0:00:07.6]}
53... Kb5 {[%clk 0:00:02.2]} 54. Qb8+ {[%clk 0:00:07.8]} 1-0

[Event "Early-Titled-Tuesday-Blitz-February-13-2024"]
[Site "Chess.com"]
[Date "2024.02.13"]
[Round "9"]
[White "rhungaski"]
[Black "ansko1999"]
[Result "1-0"]
[WhiteElo "2510"]
[BlackElo "2650"]
[TimeControl "180+1"]
[EndTime "9:49:29 PST"]
[Termination "rhungaski won on time"]

1. e4 {[%clk 0:02:56.6]} 1... c5 {[%clk 0:02:58.9]} 2. Nf3 {[%clk 0:02:56.1]}
2... e6 {[%clk 0:02:58.7]} 3. d4 {[%clk 0:02:56.1]} 3... cxd4 {[%clk 0:02:59.1]}
4. Nxd4 {[%clk 0:02:56.3]} 4... Nc6 {[%clk 0:02:59.4]} 5. Nb5 {[%clk 0:02:52.4]}
5... d6 {[%clk 0:02:55.6]} 6. c4 {[%clk 0:02:52.1]} 6... Nf6 {[%clk 0:02:53.5]}
7. N1c3 {[%clk 0:02:49.8]} 7... a6 {[%clk 0:02:50.1]} 8. Na3 {[%clk 0:02:49.4]}
8... Be7 {[%clk 0:02:43.7]} 9. Be2 {[%clk 0:02:47.8]} 9... O-O {[%clk
0:02:43.1]} 10. O-O {[%clk 0:02:48.2]} 10... b6 {[%clk 0:02:41.4]} 11. Bf4
{[%clk 0:02:47.5]} 11... Bb7 {[%clk 0:02:33.8]} 12. Re1 {[%clk 0:02:45.2]} 12...
Qc7 {[%clk 0:02:25.7]} 13. Rc1 {[%clk 0:02:37.7]} 13... Ne5 {[%clk 0:02:21.8]}
14. Bf1 {[%clk 0:02:36.5]} 14... Rac8 {[%clk 0:02:19.6]} 15. h3 {[%clk
0:02:35.2]} 15... Rfd8 {[%clk 0:02:19]} 16. Qd2 {[%clk 0:02:31.2]} 16... Qb8
{[%clk 0:02:14.6]} 17. Bh2 {[%clk 0:02:19.7]} 17... Qa8 {[%clk 0:02:10.3]} 18.
Qe3 {[%clk 0:02:13.3]} 18... Ned7 {[%clk 0:02:01.5]} 19. Nab1 {[%clk 0:02:03.3]}
19... Bf8 {[%clk 0:01:54.8]} 20. Nd2 {[%clk 0:02:02.6]} 20... Bc6 {[%clk
0:01:45.2]} 21. a3 {[%clk 0:01:59.6]} 21... Qb7 {[%clk 0:01:43.1]} 22. b4 {[%clk
0:01:51.7]} 22... b5 {[%clk 0:01:40.5]} 23. Nb3 {[%clk 0:01:51.6]} 23... bxc4
{[%clk 0:01:31.5]} 24. Na5 {[%clk 0:01:50.7]} 24... Qa8 {[%clk 0:01:32]} 25.
Bxc4 {[%clk 0:01:15.4]} 25... Ne5 {[%clk 0:01:22.8]} 26. Bf1 {[%clk 0:01:09.4]}
26... Be8 {[%clk 0:01:18]} 27. Qe2 {[%clk 0:00:58.4]} 27... Nc6 {[%clk
0:01:04.4]} 28. Qxa6 {[%clk 0:00:29.3]} 28... Qxa6 {[%clk 0:01:03.2]} 29. Bxa6
{[%clk 0:00:28.2]} 29... Rb8 {[%clk 0:00:46.6]} 30. Nxc6 {[%clk 0:00:23.5]}
30... Bxc6 {[%clk 0:00:46.3]} 31. Bd3 {[%clk 0:00:21.3]} 31... Ra8 {[%clk
0:00:45.6]} 32. b5 {[%clk 0:00:18.5]} 32... Bb7 {[%clk 0:00:45.7]} 33. a4 {[%clk
0:00:18.7]} 33... d5 {[%clk 0:00:45.8]} 34. exd5 {[%clk 0:00:17.1]} 34... Nxd5
{[%clk 0:00:46.1]} 35. Nxd5 {[%clk 0:00:17.3]} 35... Bxd5 {[%clk 0:00:45.3]} 36.
Bc7 {[%clk 0:00:17.6]} 36... Rdc8 {[%clk 0:00:44.2]} 37. Be4 {[%clk 0:00:16.3]}
37... Rxa4 {[%clk 0:00:39.7]} 38. Bxd5 {[%clk 0:00:16.5]} 38... exd5 {[%clk
0:00:40.6]} 39. b6 {[%clk 0:00:17.1]} 39... Rb4 {[%clk 0:00:40]} 40. Rb1 {[%clk
0:00:16.5]} 40... Rc4 {[%clk 0:00:33.3]} 41. Bg3 {[%clk 0:00:14.6]} 41... Bb4
{[%clk 0:00:20]} 42. Red1 {[%clk 0:00:14.7]} 42... d4 {[%clk 0:00:05.1]} 43. b7
{[%clk 0:00:14.6]} 43... Rf8 {[%clk 0:00:05.6]} 44. b8=Q {[%clk 0:00:14.4]}
44... Rxb8 {[%clk 0:00:05.8]} 45. Bxb8 {[%clk 0:00:14.6]} 45... f6 {[%clk
0:00:05.2]} 46. h4 {[%clk 0:00:10.3]} 46... h5 {[%clk 0:00:05]} 47. g3 {[%clk
0:00:10.4]} 47... Kf7 {[%clk 0:00:05]} 48. Bf4 {[%clk 0:00:10.4]} 48... Bc3
{[%clk 0:00:04.3]} 49. Rd3 {[%clk 0:00:10.4]} 49... Kg6 {[%clk 0:00:04.1]} 50.
Bd2 {[%clk 0:00:10]} 50... Kf5 {[%clk 0:00:04]} 51. Bxc3 {[%clk 0:00:09.3]}
51... dxc3 {[%clk 0:00:04.3]} 52. Rc1 {[%clk 0:00:09.4]} 52... c2 {[%clk
0:00:03.3]} 53. Rd2 {[%clk 0:00:09.6]} 53... Kg4 {[%clk 0:00:03.2]} 54. Kg2
{[%clk 0:00:09.1]} 54... Ra4 {[%clk 0:00:02.2]} 55. Rcxc2 {[%clk 0:00:08.3]}
55... Kf5 {[%clk 0:00:02.8]} 56. Rc5+ {[%clk 0:00:07.8]} 56... Kg6 {[%clk
0:00:03.2]} 57. Rcd5 {[%clk 0:00:08.3]} 57... Ra3 {[%clk 0:00:03.3]} 58. R5d3
{[%clk 0:00:08.2]} 58... Ra4 {[%clk 0:00:03.7]} 59. Rd7 {[%clk 0:00:08.6]} 59...
Ra3 {[%clk 0:00:03.4]} 60. Rc7 {[%clk 0:00:08.4]} 60... Kh6 {[%clk 0:00:02.2]}
61. Rdd7 {[%clk 0:00:08.2]} 61... f5 {[%clk 0:00:02.3]} 62. Rd6+ {[%clk
0:00:07.8]} 62... g6 {[%clk 0:00:01.2]} 63. Rdd7 {[%clk 0:00:06.9]} 1-0

[Event "Early-Titled-Tuesday-Blitz-February-13-2024"]
[Site "Chess.com"]
[Date "2024.02.13"]
[Round "9"]
[White "ChEsper99"]
[Black "RamonManon0g"]
[Result "1-0"]
[WhiteElo "2225"]
[BlackElo "2362"]
[TimeControl "180+1"]
[EndTime "9:49:30 PST"]
[Termination "ChEsper99 won by checkmate"]

1. d4 {[%clk 0:02:57.3]} 1... Nf6 {[%clk 0:02:59.7]} 2. Bf4 {[%clk 0:02:56.4]}
2... g6 {[%clk 0:03:00.6]} 3. Nf3 {[%clk 0:02:55.1]} 3... d6 {[%clk 0:02:57.4]}
4. g3 {[%clk 0:02:54.4]} 4... Bg7 {[%clk 0:02:57.5]} 5. Bg2 {[%clk 0:02:54.4]}
5... O-O {[%clk 0:02:58.4]} 6. O-O {[%clk 0:02:54.6]} 6... c6 {[%clk 0:02:55.7]}
7. c4 {[%clk 0:02:54.7]} 7... Qb6 {[%clk 0:02:55.6]} 8. Qc1 {[%clk 0:02:46.4]}
8... Bf5 {[%clk 0:02:54.7]} 9. Nc3 {[%clk 0:02:44.5]} 9... Ne4 {[%clk
0:02:53.4]} 10. Bh6 {[%clk 0:02:24.4]} 10... Nd7 {[%clk 0:02:32.9]} 11. Bxg7
{[%clk 0:02:12.7]} 11... Kxg7 {[%clk 0:02:33.8]} 12. Nh4 {[%clk 0:02:11.7]}
12... Ndf6 {[%clk 0:02:09.4]} 13. Nxf5+ {[%clk 0:01:47.9]} 13... gxf5 {[%clk
0:02:10.3]} 14. e3 {[%clk 0:01:42.3]} 14... e5 {[%clk 0:02:04.4]} 15. Nxe4
{[%clk 0:01:35.8]} 15... fxe4 {[%clk 0:01:58.5]} 16. dxe5 {[%clk 0:01:33.4]}
16... dxe5 {[%clk 0:01:59.4]} 17. Qc2 {[%clk 0:01:31.9]} 17... Rad8 {[%clk
0:01:47.4]} 18. Rfd1 {[%clk 0:01:24.7]} 18... Qb4 {[%clk 0:01:31.5]} 19. b3
{[%clk 0:01:17.3]} 19... b5 {[%clk 0:01:23.5]} 20. Bxe4 {[%clk 0:01:15]} 20...
bxc4 {[%clk 0:01:19.8]} 21. bxc4 {[%clk 0:00:51.7]} 21... c5 {[%clk 0:01:19.1]}
22. Bd5 {[%clk 0:00:43.5]} 22... Rd6 {[%clk 0:00:44.8]} 23. Qf5 {[%clk
0:00:39.1]} 23... Qc3 {[%clk 0:00:39.6]} 24. Rac1 {[%clk 0:00:33.4]} 24... Qb2
{[%clk 0:00:35.2]} 25. Rc2 {[%clk 0:00:33.5]} 25... Qb6 {[%clk 0:00:26.5]} 26.
Qxe5 {[%clk 0:00:28]} 26... h6 {[%clk 0:00:24.7]} 27. Rcd2 {[%clk 0:00:21.3]}
27... Re8 {[%clk 0:00:20]} 28. Qf4 {[%clk 0:00:21.1]} 28... Qb4 {[%clk
0:00:16.6]} 29. h4 {[%clk 0:00:20.4]} 29... Rdd8 {[%clk 0:00:13]} 30. g4 {[%clk
0:00:14.9]} 30... Re4 {[%clk 0:00:08.7]} 31. Bxe4 {[%clk 0:00:06.7]} 31... Rxd2
{[%clk 0:00:09.6]} 32. Rxd2 {[%clk 0:00:07.1]} 32... Qxd2 {[%clk 0:00:09.9]} 33.
Bf5 {[%clk 0:00:03.4]} 33... Qd1+ {[%clk 0:00:07.4]} 34. Kg2 {[%clk 0:00:03.3]}
34... Qd8 {[%clk 0:00:04.3]} 35. g5 {[%clk 0:00:03.8]} 35... hxg5 {[%clk
0:00:04.8]} 36. Qxg5+ {[%clk 0:00:03.8]} 36... Kf8 {[%clk 0:00:05.3]} 37. h5
{[%clk 0:00:04.2]} 37... Qa8+ {[%clk 0:00:04.4]} 38. Kg1 {[%clk 0:00:03.9]}
38... Ne4 {[%clk 0:00:04.2]} 39. Bxe4 {[%clk 0:00:01.8]} 39... Qxe4 {[%clk
0:00:05.1]} 40. h6 {[%clk 0:00:02.3]} 40... Qb1+ {[%clk 0:00:05]} 41. Kg2 {[%clk
0:00:02.3]} 41... Qe4+ {[%clk 0:00:03.5]} 42. Kg3 {[%clk 0:00:02.2]} 42... a5
{[%clk 0:00:01.5]} 43. Qg7+ {[%clk 0:00:02.4]} 43... Ke8 {[%clk 0:00:01.5]} 44.
h7 {[%clk 0:00:03.1]} 44... Ke7 {[%clk 0:00:02.4]} 45. h8=Q {[%clk 0:00:03.4]}
45... Qf5 {[%clk 0:00:02.5]} 46. Qh4+ {[%clk 0:00:02.8]} 46... Kd7 {[%clk
0:00:03.4]} 47. Qhg4 {[%clk 0:00:03.3]} 47... Qxg4+ {[%clk 0:00:03.6]} 48. Qxg4+
{[%clk 0:00:03.6]} 48... Ke7 {[%clk 0:00:04.5]} 49. Qf4 {[%clk 0:00:04.1]} 49...
f6 {[%clk 0:00:05.4]} 50. Kg4 {[%clk 0:00:04.8]} 50... Ke6 {[%clk 0:00:06]} 51.
Qf5+ {[%clk 0:00:05.2]} 51... Ke7 {[%clk 0:00:06.1]} 52. Qxc5+ {[%clk
0:00:05.3]} 52... Ke6 {[%clk 0:00:05.8]} 53. Qxa5 {[%clk 0:00:05.4]} 53... f5+
{[%clk 0:00:03.7]} 54. Qxf5+ {[%clk 0:00:06.3]} 54... Kd6 {[%clk 0:00:04.1]} 55.
Qf4+ {[%clk 0:00:04.6]} 55... Kc5 {[%clk 0:00:04]} 56. e4 {[%clk 0:00:04.7]}
56... Kxc4 {[%clk 0:00:04]} 57. e5+ {[%clk 0:00:05.2]} 57... Kd5 {[%clk
0:00:04.9]} 58. Qe3 {[%clk 0:00:04.8]} 58... Ke6 {[%clk 0:00:05.2]} 59. a4
{[%clk 0:00:05]} 59... Kf7 {[%clk 0:00:05.1]} 60. a5 {[%clk 0:00:05.5]} 60...
Kg6 {[%clk 0:00:06]} 61. a6 {[%clk 0:00:06]} 61... Kf7 {[%clk 0:00:06]} 62. e6+
{[%clk 0:00:06.4]} 62... Kg6 {[%clk 0:00:06.9]} 63. a7 {[%clk 0:00:06.4]} 63...
Kf6 {[%clk 0:00:07.2]} 64. e7 {[%clk 0:00:06.5]} 64... Kg6 {[%clk 0:00:08.1]}
65. e8=Q+ {[%clk 0:00:06.8]} 65... Kf6 {[%clk 0:00:08]} 66. Q3e6+ {[%clk
0:00:06.9]} 66... Kg7 {[%clk 0:00:08.3]} 67. Q8g8# {[%clk 0:00:01.5]} 1-0